bitfinex-derivatives/quotes_SOLF0:USTF0_20250312
["timestamp","ask_amount","ask_price","bid_price","bid_amount"]
[1741749607302,31.9,123.77,123.71,38.1129]
[1741749607505,31.9,123.77,123.71,6.2129]
[1741749608307,0.05604329,123.75,123.73,0.0520518]
[1741749609309,8.0829,123.74,123.73,0.0520518]
[1741749609610,0.05604329,123.75,123.73,0.0520518]
[1741749610211,31.9,123.81,123.74,17.12577516]
[1741749610407,8.08,123.79,123.75,8.0818]
[1741749611406,0.06023713,123.78,123.76,0.05595725]
[1741749611709,8.14113713,123.78,123.76,0.05595725]
[1741749612101,8.0809,123.77,123.76,0.05595725]
[1741749613207,8.0809,123.77,123.76,5.725e-05]
[1741749614016,40.04083713,123.78,123.76,5.725e-05]
[1741749614815,8.0809,123.77,123.76,5.725e-05]
[1741749615013,31.96023713,123.78,123.76,5.725e-05]
[1741749615517,8.0809,123.77,123.76,5.725e-05]
[1741749615714,31.96023713,123.78,123.76,5.725e-05]
[1741749615911,0.06023713,123.78,123.76,5.725e-05]
[1741749616212,8.14073713,123.78,123.76,5.725e-05]
[1741749617005,0.06023713,123.78,123.76,5.725e-05]
[1741749617413,0.06023713,123.78,123.76,8.08125725]
[1741749617609,0.06023713,123.78,123.76,5.725e-05]
[1741749617811,0.06023713,123.78,123.76,17.12583241]
[1741749618909,0.06023713,123.78,123.76,5.725e-05]
[1741749619315,8.0809,123.77,123.76,5.725e-05]
[1741749619509,0.06023713,123.78,123.76,5.725e-05]
[1741749621116,8.14073713,123.78,123.76,5.725e-05]
[1741749621613,0.06023713,123.78,123.76,5.725e-05]
[1741749622013,8.0809,123.77,123.76,5.725e-05]
[1741749637226,25.20667516,123.77,123.76,5.725e-05]
[1741749639323,8.0809,123.77,123.76,5.725e-05]
[1741749640421,40.04063713,123.78,123.76,5.725e-05]
[1741749640620,0.06023713,123.78,123.76,5.725e-05]
[1741749642433,8.14053713,123.78,123.76,5.725e-05]
[1741749643633,0.06023713,123.78,123.76,5.725e-05]
[1741749645024,8.14053713,123.78,123.76,5.725e-05]
[1741749645527,0.06023713,123.78,123.76,5.725e-05]
[1741749646630,0.06023713,123.78,123.76,8.08145725]
[1741749646830,10.88526924,123.82,123.76,17.12583241]
[1741749647124,10.88526924,123.82,123.78,17.12577516]
[1741749647333,10.88526924,123.82,123.79,8.0791]
[1741749647530,10.88526924,123.82,123.78,17.12577516]
[1741749647722,43.79308321,123.83,123.8,17.12577516]
[1741749648127,43.85017779,123.83,123.8,17.18243381]
[1741749649134,43.85017779,123.83,123.81,8.0783]
[1741749650933,88.13924615,123.84,123.8,17.18243381]
[1741749650934,42.47942236,123.84,123.82,49.00577516]
[1741749651130,44.72344046,123.9,123.83,4.1907]
[1741749651337,52.79624046,123.9,123.85,8.0753]
[1741749651734,44.72344046,123.9,123.86,8.0749]
[1741749651929,0.0563477,123.89,123.87,0.05805174]
[1741749652733,0.0563477,123.89,123.87,8.13225174]
[1741749653736,0.0563477,123.89,123.88,17.12577516]
[1741749654037,0.0563477,123.89,123.88,25.19947516]
[1741749654737,0.0563477,123.89,123.88,17.12577516]
[1741749655240,44.72344046,123.9,123.89,8.0731]
[1741749655435,33.9684,123.97,123.88,49.00577516]
[1741749655834,33.9684,123.97,123.88,57.07897516]
[1741749656133,17.12577516,123.96,123.88,49.00577516]
[1741749656333,17.12577516,123.96,123.88,31.88]
[1741749656533,0.05703114,123.93,123.91,0.05999789]
[1741749656736,31.91703114,123.93,123.91,0.05999789]
[1741749656937,31.91703114,123.93,123.86,17.12577516]
[1741749657138,31.91703114,123.93,123.85,31.86]
[1741749657340,17.12577516,123.92,123.84,17.12577516]
[1741749657642,8.073,123.9,123.85,8.0754]
[1741749658237,0.05516242,123.89,123.86,0.05605131]
[1741749658641,8.12826242,123.89,123.86,0.05605131]
[1741749660640,8.0742,123.88,123.86,0.05605131]
[1741749660838,0.05516242,123.89,123.86,0.05605131]
[1741749661339,8.12826242,123.89,123.86,0.05605131]
[1741749662241,8.0744,123.87,123.86,0.05605131]
[1741749663146,31.86,123.87,123.81,8.0781]
[1741749663640,31.86,123.87,123.8,21.24287516]
[1741749664242,0.06015488,123.85,123.82,0.06117159]
[1741749664644,8.13615488,123.85,123.82,0.06117159]
[1741749665045,0.06015488,123.85,123.82,0.06117159]
[1741749665542,0.06015488,123.85,123.82,8.13847159]
[1741749665736,0.06015488,123.85,123.82,0.06117159]
[1741749666144,0.06015488,123.85,123.82,8.13857159]
[1741749667044,0.06015488,123.85,123.82,0.06117159]
[1741749667440,8.13595488,123.85,123.82,0.06117159]
[1741749667645,0.06015488,123.85,123.82,0.06117159]
[1741749668644,0.06015488,123.85,123.82,17.18694675]
[1741749670445,0.06015488,123.85,123.83,8.0765]
[1741749670741,0.06015488,123.85,123.82,17.18694675]
[1741749670939,0.06015488,123.85,123.82,0.06117159]
[1741749672441,8.13625488,123.85,123.82,0.06117159]
[1741749673641,8.0764,123.84,123.82,0.06117159]
[1741749673844,0.06015488,123.85,123.82,0.06117159]
[1741749674848,8.13635488,123.85,123.82,0.06117159]
[1741749675052,0.06015488,123.85,123.82,0.06117159]
[1741749675443,8.0764,123.84,123.82,0.06117159]
[1741749676150,8.13615488,123.85,123.82,0.06117159]
[1741749676849,0.06015488,123.85,123.82,8.13877159]
[1741749677051,0.06015488,123.85,123.82,0.06117159]
[1741749677351,8.13595488,123.85,123.82,0.06117159]
[1741749677552,0.06015488,123.85,123.82,0.06117159]
[1741749677751,0.06015488,123.85,123.82,8.13837159]
[1741749679253,0.06015488,123.85,123.82,0.06117159]
[1741749679849,8.13625488,123.85,123.82,0.06117159]
[1741749680550,8.077,123.83,123.82,0.06117159]
[1741749680752,31.86,123.84,123.77,4.2296]
[1741749680946,31.86,123.84,123.78,8.0799]
[1741749681151,8.0782,123.82,123.78,8.0799]
[1741749681559,31.86,123.84,123.77,4.2296]
[1741749681753,8.0787,123.81,123.77,12.3104]
[1741749681948,8.0787,123.81,123.79,0.06088195]
[1741749682345,0.0534057,123.82,123.79,0.06088195]
[1741749682653,8.1313057,123.82,123.79,0.06088195]
[1741749682855,0.0534057,123.82,123.79,0.06088195]
[1741749683053,8.0788,123.81,123.79,0.06088195]
[1741749683551,8.0783,123.81,123.79,0.06088195]
[1741749683755,0.0534057,123.82,123.79,0.06088195]
[1741749684055,8.0787,123.81,123.79,0.06088195]
[1741749685356,0.0534057,123.82,123.79,0.06088195]
[1741749687645,0.0534057,123.82,123.81,8.0783]
[1741749688250,2.1478,123.88,123.84,8.0762]
[1741749689659,0.05376885,123.87,123.85,0.05089913]
[1741749690458,8.12826885,123.87,123.85,0.05089913]
[1741749691561,0.05376885,123.87,123.85,0.05089913]
[1741749692159,8.12826885,123.87,123.85,0.05089913]
[1741749692661,0.05376885,123.87,123.85,0.05089913]
[1741749696060,0.05376885,123.87,123.85,8.12649913]
[1741749696866,0.05376885,123.87,123.86,8.075]
[1741749698763,0.05376885,123.87,123.86,25.20077516]
[1741749703263,2.096,123.92,123.86,17.12577516]
[1741749703571,2.096,123.92,123.89,8.0728]
[1741749704471,2.14806911,123.92,123.89,8.13162915]
[1741749705667,0.05206911,123.92,123.9,8.0719]
[1741749705870,0.05206911,123.92,123.9,17.12577516]
[1741749706270,0.05206911,123.92,123.91,8.0718]
[1741749707173,0.05206911,123.92,123.9,17.12577516]
[1741749707472,0.05206911,123.92,123.9,25.19787516]
[1741749707871,0.05206911,123.92,123.89,0.05882915]
[1741749708974,0.05206911,123.92,123.84,48.96577516]
[1741749709271,48.96577516,123.93,123.85,8.0753]
[1741749709272,8.0735,123.89,123.85,8.0753]
[1741749710275,0.05869589,123.88,123.87,8.0744]
[1741749710476,8.0719,123.91,123.87,8.0744]
[1741749710674,0.05136997,123.89,123.87,8.0744]
[1741749711075,0.05136997,123.89,123.87,8.13094687]
[1741749711376,0.05136997,123.89,123.88,8.0737]
[1741749711772,0.05136997,123.89,123.87,0.05654687]
[1741749712077,0.05136997,123.89,123.87,8.13074687]
[1741749712576,0.05136997,123.89,123.87,0.05654687]
[1741749713073,8.12506997,123.89,123.87,0.05654687]
[1741749713774,0.05136997,123.89,123.87,0.05654687]
[1741749714074,8.0737,123.88,123.87,0.05654687]
[1741749714274,0.05136997,123.89,123.87,0.05654687]
[1741749717080,0.05136997,123.89,123.87,8.13034687]
[1741749718379,0.05136997,123.89,123.87,0.05654687]
[1741749719581,0.05136997,123.89,123.87,8.13064687]
[1741749720180,0.05136997,123.89,123.87,0.05654687]
[1741749720881,8.0737,123.88,123.87,0.05654687]
[1741749721087,31.87136997,123.89,123.83,242.24]
[1741749721379,8.075,123.87,123.83,242.24]
[1741749721580,8.075,123.87,123.84,8.076]
[1741749721778,31.82,123.86,123.79,2.195]
[1741749721983,31.82,123.85,123.77,387.80556405]
[1741749722182,0.05216196,123.84,123.81,0.06140161]
[1741749723777,8.0788,123.81,123.77,242.18]
[1741749723982,31.82,123.82,123.76,19.15637516]
[1741749724581,31.82,123.84,123.76,19.15637516]
[1741749724885,0.05555179,123.81,123.79,0.05980578]
[1741749725285,0.05555179,123.81,123.8,8.0788]
[1741749727185,0.05555179,123.81,123.79,8.13920578]
[1741749727382,0.05555179,123.81,123.79,0.05980578]
[1741749727582,8.0789,123.8,123.74,17.12577516]
[1741749727786,31.82,123.81,123.74,17.12577516]
[1741749728186,39.8986,123.81,123.76,8.081]
[1741749728492,31.82,123.81,123.74,17.12577516]
[1741749728688,8.0797,123.79,123.74,17.12577516]
[1741749728990,0.05346311,123.79,123.76,0.05993402]
[1741749729780,0.05346311,123.79,123.76,8.14103402]
[1741749730189,0.05346311,123.79,123.76,0.05993402]
[1741749730385,0.05346311,123.79,123.77,8.0809]
[1741749730680,0.05346311,123.79,123.76,0.05993402]
[1741749730887,8.13336311,123.79,123.76,0.05993402]
[1741749731087,0.05346311,123.79,123.76,0.05993402]
[1741749733684,8.0803,123.78,123.76,0.05993402]
[1741749733889,39.9203,123.78,123.76,0.05993402]
[1741749734082,31.84,123.78,123.76,0.05993402]
[1741749734285,0.05346311,123.79,123.76,0.05993402]
[1741749735188,0.05346311,123.79,123.76,8.14123402]
[1741749735389,0.05346311,123.79,123.76,0.05993402]
[1741749735895,0.05346311,123.79,123.77,8.0808]
[1741749736090,0.05346311,123.79,123.76,0.05993402]
[1741749736397,0.05346311,123.79,123.76,17.18570918]
[1741749737788,0.05346311,123.79,123.77,8.0804]
[1741749738301,0.05346311,123.79,123.76,25.26700918]
[1741749738489,0.05346311,123.79,123.76,0.05993402]
[1741749738896,8.0803,123.78,123.76,0.05993402]
[1741749739700,8.13336311,123.79,123.76,0.05993402]
[1741749739898,0.05346311,123.79,123.76,0.05993402]
[1741749740099,0.05346311,123.79,123.76,8.14133402]
[1741749740398,0.05346311,123.79,123.76,0.05993402]
[1741749740599,0.05346311,123.79,123.77,8.0809]
[1741749740991,0.05346311,123.79,123.76,17.18570918]
[1741749741192,0.05346311,123.79,123.78,8.0803]
[1741749742601,0.05346311,123.79,123.76,17.18570918]
[1741749743003,0.05346311,123.79,123.77,8.0809]
[1741749743404,0.05346311,123.79,123.76,0.05993402]
[1741749743605,0.05346311,123.79,123.78,8.0803]
[1741749745005,0.05346311,123.79,123.76,0.05993402]
[1741749745202,0.05346311,123.79,123.77,8.0805]
[1741749745401,0.05346311,123.79,123.76,0.05993402]
[1741749745703,0.05346311,123.79,123.78,8.0803]
[1741749747603,0.05346311,123.79,123.76,0.05993402]
[1741749748010,8.0806,123.78,123.76,0.05993402]
[1741749748211,2.19296311,123.79,123.76,0.05993402]
[1741749748711,2.19296311,123.79,123.77,8.0804]
[1741749749009,2.19296311,123.79,123.76,0.05993402]
[1741749749209,8.0803,123.78,123.76,0.05993402]
[1741749749808,10.27276311,123.79,123.76,8.14133402]
[1741749750107,2.19296311,123.79,123.76,8.14133402]
[1741749750801,2.19296311,123.79,123.76,0.05993402]
[1741749751200,8.0806,123.78,123.76,0.05993402]
[1741749751607,2.19296311,123.79,123.76,0.05993402]
[1741749753009,8.0807,123.78,123.76,0.05993402]
[1741749753714,8.0803,123.78,123.76,0.05993402]
[1741749754011,2.19296311,123.79,123.76,0.05993402]
[1741749756008,8.0809,123.77,123.76,0.05993402]
[1741749756210,31.84,123.77,123.72,10.96995596]
[1741749756412,31.84,123.77,123.74,10.96995596]
[1741749756610,8.0806,123.78,123.75,8.0821]
[1741749757311,8.13888004,123.78,123.75,8.13355768]
[1741749757713,8.13888004,123.78,123.76,8.0816]
[1741749758216,8.13888004,123.78,123.75,8.13325768]
[1741749763222,0.05828004,123.78,123.76,10.96995596]
[1741749763826,0.05828004,123.78,123.77,8.0809]
[1741749765130,0.05828004,123.78,123.76,10.96995596]
[1741749765331,0.05828004,123.78,123.75,11.02141364]
[1741749765729,0.05828004,123.78,123.76,8.0811]
[1741749765931,0.05828004,123.78,123.75,11.02141364]
[1741749766230,0.05828004,123.78,123.76,8.0816]
[1741749767529,0.05828004,123.78,123.77,8.0809]
[1741749767925,0.05828004,123.78,123.75,0.05145768]
[1741749768126,8.0816,123.76,123.75,0.05145768]
[1741749768527,31.84,123.76,123.71,250.2645]
[1741749768834,8.0825,123.75,123.71,250.2645]
[1741749769233,39.9219,123.76,123.72,8.084]
[1741749769933,8.0836,123.73,123.7,29.46951429]
[1741749770130,0.05413985,123.75,123.73,0.05165112]
[1741749770331,0.05413985,123.75,123.7,17.12921429]
[1741749770536,0.05413985,123.75,123.73,0.05348985]
[1741749771534,0.05413985,123.75,123.74,8.0829]
[1741749773639,0.05413985,123.75,123.73,8.13678985]
[1741749774639,0.05413985,123.75,123.73,0.05348985]
[1741749774832,0.05413985,123.75,123.73,8.13698985]
[1741749776035,0.05413985,123.75,123.74,8.0829]
[1741749776942,0.05413985,123.75,123.73,0.05348985]
[1741749777742,31.89413985,123.75,123.69,145.71209697]
[1741749778138,39.97663985,123.75,123.71,8.0848]
[1741749778640,31.89413985,123.75,123.72,8.0838]
[1741749778833,31.89413985,123.75,123.72,8.13147727]
[1741749779643,31.89413985,123.75,123.73,8.0835]
[1741749780546,0.05413985,123.75,123.73,8.0835]
[1741749780749,8.13633985,123.75,123.72,0.04767727]
[1741749780950,0.05413985,123.75,123.72,0.04767727]
[1741749781246,8.13673985,123.75,123.72,8.13177727]
[1741749781946,31.89413985,123.75,123.72,0.04767727]
[1741749782145,31.89413985,123.75,123.73,8.0835]
[1741749782345,0.05413985,123.75,123.72,0.04767727]
[1741749782549,0.05413985,123.75,123.74,8.0829]
[1741749782738,0.05413985,123.75,123.72,17.17689156]
[1741749783637,0.05413985,123.75,123.74,8.0829]
[1741749783843,0.05413985,123.75,123.72,17.17689156]
[1741749784346,0.05413985,123.75,123.72,0.04767727]
[1741749784649,8.13663985,123.75,123.72,0.04767727]
[1741749785051,8.0832,123.74,123.72,0.04767727]
[1741749786951,31.84,123.74,123.72,0.04767727]
[1741749787650,39.9229,123.74,123.72,0.04767727]
[1741749788353,31.84,123.74,123.68,17.12921429]
[1741749788748,31.84,123.74,123.71,8.0844]
[1741749789653,31.90089734,123.74,123.71,8.0844]
[1741749790550,31.90089734,123.74,123.68,17.12921429]
[1741749790757,31.90089734,123.74,123.67,2.1337]
[1741749791156,31.90089734,123.74,123.7,8.0854]
[1741749791351,31.90089734,123.74,123.68,17.12921429]
[1741749791853,31.90089734,123.74,123.71,8.0842]
[1741749792052,31.90089734,123.74,123.68,17.12921429]
[1741749792253,4.71199106,123.73,123.68,17.12921429]
[1741749792455,39.98389734,123.74,123.69,8.0857]
[1741749792755,6.35292978,123.73,123.68,17.12921429]
[1741749793053,6.35292978,123.73,123.71,8.0844]
[1741749793254,6.35292978,123.72,123.68,17.12921429]
[1741749793649,0.05154945,123.71,123.68,17.12921429]
[1741749793855,6.40447923,123.71,123.68,17.12921429]
[1741749794357,0.05154945,123.71,123.7,25.21471429]
[1741749795358,6.39989221,123.71,123.7,25.21471429]
[1741749796853,0.05154945,123.71,123.7,25.21471429]
[1741749797655,0.05154945,123.71,123.7,8.0855]
[1741749798067,6.39970931,123.71,123.7,8.0855]
[1741749798459,6.39970931,123.71,123.69,25.21511429]
[1741749798759,6.39970931,123.71,123.69,17.12921429]
[1741749799154,31.89154945,123.71,123.66,2.0424]
[1741749799358,31.89154945,123.71,123.65,17.12921429]
[1741749799657,12.79258891,123.7,123.63,152.59421507]
[1741749799964,6.400158,123.69,123.63,152.59421507]
[1741749800163,36.54259092,123.68,123.63,133.30410078]
[1741749800467,4.70259092,123.67,123.63,133.30410078]
[1741749800653,4.70259092,123.66,123.63,133.30410078]
[1741749800858,6.34354276,123.66,123.63,133.30410078]
[1741749801167,6.40248519,123.66,123.63,141.39380078]
[1741749801463,6.40248519,123.66,123.6,17.12921429]
[1741749801670,6.34354276,123.65,123.62,8.0905]
[1741749801861,6.34354276,123.65,123.6,17.12921429]
[1741749802163,6.34354276,123.64,123.6,17.12921429]
[1741749802559,8.0876,123.67,123.6,17.12921429]
[1741749802760,0.05099337,123.63,123.62,8.0907]
[1741749802960,8.0876,123.67,123.6,17.12921429]
[1741749803257,0.05454971,123.64,123.6,17.12921429]
[1741749803565,0.05454971,123.64,123.63,8.0899]
[1741749803768,0.05454971,123.64,123.6,17.12921429]
[1741749804864,0.05454971,123.64,123.59,274.34]
[1741749805167,31.89454971,123.64,123.58,2.0564]
[1741749805362,6.30937483,123.63,123.58,19.18561429]
[1741749805561,6.30937483,123.63,123.6,8.0919]
[1741749805757,31.89454971,123.64,123.6,8.0919]
[1741749805958,0.05454971,123.64,123.58,51.02561429]
[1741749806158,0.05454971,123.64,123.6,8.0917]
[1741749806362,0.05454971,123.64,123.6,17.12921429]
[1741749807263,0.05454971,123.64,123.61,8.0909]
[1741749807760,0.05454971,123.64,123.6,17.12921429]
[1741749808165,0.05454971,123.64,123.63,8.0901]
[1741749808871,18.53700976,123.71,123.58,33.8964]
[1741749808872,6.29767946,123.67,123.65,8.0883]
[1741749809367,6.29767946,123.69,123.63,31.84]
[1741749809567,2.0075,123.7,123.63,31.84]
[1741749809871,8.0872,123.68,123.63,31.84]
[1741749810070,2.0075,123.7,123.63,31.84]
[1741749810366,0.05390037,123.68,123.65,0.05454971]
[1741749810870,17.18311466,123.68,123.65,0.05454971]
[1741749811065,8.0874,123.67,123.65,0.05454971]
[1741749811270,17.18311466,123.68,123.65,0.05454971]
[1741749811469,0.05390037,123.68,123.65,0.05454971]
[1741749811668,6.29687138,123.67,123.61,31.84]
[1741749812268,6.29687138,123.66,123.61,31.84]
[1741749812460,6.29687138,123.66,123.62,17.12921429]
[1741749812665,6.29687138,123.66,123.62,19.20991429]
[1741749812969,0.05265232,123.65,123.62,19.20991429]
[1741749813760,2.0075,123.7,123.64,17.12921429]
[1741749813960,2.0075,123.7,123.64,48.96921429]
[1741749814262,6.29764278,123.69,123.64,48.96921429]
[1741749814772,10.0934,123.7,123.66,8.0877]
[1741749815070,0.053257,123.68,123.65,0.05265232]
[1741749816071,8.0881,123.66,123.65,0.05265232]
[1741749816271,17.18247129,123.68,123.6,242.62]
[1741749816465,17.12921429,123.68,123.6,242.62]
[1741749816766,6.29514774,123.67,123.6,259.74921429]
[1741749817070,14.38314774,123.67,123.63,8.09]
[1741749817266,6.29514774,123.66,123.63,8.09]
[1741749817467,6.35619446,123.66,123.61,34.0168]
[1741749817669,0.06104672,123.66,123.65,8.0887]
[1741749818974,0.06104672,123.66,123.62,2.1952]
[1741749819571,0.06104672,123.66,123.64,8.0888]
[1741749819969,0.06104672,123.66,123.62,2.1952]
[1741749820168,0.06104672,123.66,123.64,8.0888]
[1741749820470,0.06104672,123.66,123.62,2.1952]
[1741749820772,0.06104672,123.66,123.62,19.32441429]
[1741749820968,0.06104672,123.66,123.62,2.1952]
[1741749821568,0.06104672,123.66,123.62,19.32441429]
[1741749821769,0.06104672,123.66,123.64,8.0888]
[1741749822074,0.06104672,123.66,123.62,19.32441429]
[1741749822276,0.06104672,123.66,123.63,8.0896]
[1741749822475,0.06104672,123.66,123.62,2.1952]
[1741749822775,8.14944672,123.66,123.62,2.1952]
[1741749823073,0.06104672,123.66,123.62,10.2856]
[1741749823275,8.14924672,123.66,123.62,10.2856]
[1741749823471,0.06104672,123.66,123.61,10.2679]
[1741749823672,8.0909,123.62,123.57,2.1642]
[1741749824075,0.05181162,123.61,123.58,8.0932]
[1741749824473,0.05181162,123.61,123.57,2.1642]
[1741749824674,0.05181162,123.61,123.59,8.0926]
[1741749824882,0.05181162,123.61,123.57,2.1642]
[1741749826275,0.05181162,123.61,123.6,8.092]
[1741749828170,0.05181162,123.61,123.59,8.0924]
[1741749828776,0.05181162,123.61,123.58,17.12921429]
[1741749829082,0.05181162,123.61,123.59,8.0927]
[1741749829471,0.05181162,123.61,123.6,8.092]
[1741749831679,0.05181162,123.61,123.59,8.0923]
[1741749832279,0.05181162,123.61,123.58,17.12921429]
[1741749832583,0.05181162,123.61,123.6,8.092]
[1741749833984,0.05181162,123.61,123.59,8.0924]
[1741749834179,0.05181162,123.61,123.56,2.0823]
[1741749834377,0.05181162,123.61,123.56,10.1764]
[1741749834581,8.0924,123.6,123.56,8.0941]
[1741749834981,8.0924,123.6,123.57,8.094]
[1741749835179,31.84,123.59,123.53,2.1192]
[1741749835488,31.84,123.59,123.55,8.0949]
[1741749835691,0.05165337,123.57,123.55,8.0949]
[1741749836885,8.0951,123.56,123.51,8.0979]
[1741749837087,0.05165337,123.57,123.51,17.12921429]
[1741749837586,0.05165337,123.57,123.54,8.0955]
[1741749838491,0.05165337,123.57,123.52,2.1459]
[1741749838985,0.05165337,123.57,123.55,8.0949]
[1741749839186,0.05165337,123.57,123.53,48.98921429]
[1741749839386,0.05165337,123.57,123.54,2.211]
[1741749839793,6.2921087,123.6,123.55,17.12921429]
[1741749840091,8.0911,123.62,123.57,8.0935]
[1741749840289,8.0911,123.62,123.56,31.86]
[1741749840689,6.29589378,123.61,123.56,31.86]
[1741749840888,0.06114728,123.6,123.58,0.05158683]
[1741749842388,0.06114728,123.6,123.58,8.14488683]
[1741749842791,0.06114728,123.6,123.58,0.05158683]
[1741749843390,0.06114728,123.6,123.58,8.14488683]
[1741749843694,6.30590821,123.59,123.58,8.14488683]
[1741749844696,6.30590821,123.59,123.58,0.05158683]
[1741749846189,6.30590821,123.59,123.58,8.14488683]
[1741749847292,5.5680485,123.59,123.58,8.14488683]
[1741749847592,0.06114728,123.6,123.59,8.0927]
[1741749847791,10.1608,123.65,123.58,0.05158683]
[1741749847991,4.68352986,123.64,123.58,0.05158683]
[1741749848189,2.0717,123.65,123.6,8.0919]
[1741749848392,4.68408394,123.64,123.57,19.14401429]
[1741749848789,4.68408394,123.64,123.61,8.091]
[1741749848985,0.05815126,123.62,123.61,8.091]
[1741749849191,0.05815126,123.62,123.59,0.05596325]
[1741749849393,0.05815126,123.62,123.61,8.0914]
[1741749849795,0.05815126,123.62,123.59,0.05596325]
[1741749849998,0.05815126,123.62,123.6,8.0917]
[1741749850797,0.05815126,123.62,123.61,8.0914]
[1741749851400,0.05815126,123.62,123.59,8.14846325]
[1741749852801,0.05815126,123.62,123.6,8.092]
[1741749854103,225.45424393,123.68,123.6,17.12921429]
[1741749854399,4.68921675,123.67,123.64,8.0893]
[1741749854591,4.68921675,123.67,123.62,17.12921429]
[1741749854792,31.86,123.68,123.62,48.98921429]
[1741749855205,0.05826992,123.66,123.64,0.05544432]
[1741749857106,0.05826992,123.66,123.64,8.14484432]
[1741749857611,0.05826992,123.66,123.64,0.05544432]
[1741749857812,0.05826992,123.66,123.64,8.14464432]
[1741749858704,0.05826992,123.66,123.64,0.05544432]
[1741749859210,0.05826992,123.66,123.64,8.14444432]
[1741749859706,6.31023291,123.65,123.64,17.18465861]
[1741749859904,6.31023291,123.65,123.64,8.14484432]
[1741749860408,0.05826992,123.66,123.64,0.05544432]
[1741749860610,0.05826992,123.66,123.65,8.0887]
[1741749862402,2.1006,123.73,123.69,8.0859]
[1741749862603,11.00148553,123.72,123.69,8.0859]
[1741749862808,4.68995532,123.71,123.69,8.0859]
[1741749863110,6.31153021,123.7,123.69,8.0859]
[1741749865615,0.05680807,123.71,123.69,25.21521429]
[1741749865812,0.05680807,123.71,123.68,31.90069972]
[1741749867008,0.05680807,123.71,123.68,39.98689972]
[1741749867211,0.05680807,123.71,123.68,31.90069972]
[1741749867517,0.05680807,123.71,123.68,0.06069972]
[1741749867706,8.0859,123.7,123.68,0.06069972]
[1741749868110,0.05680807,123.71,123.68,0.06069972]
[1741749868417,8.0859,123.7,123.68,0.06069972]
[1741749868614,0.05680807,123.71,123.68,0.06069972]
[1741749868918,6.29748757,123.69,123.68,0.06069972]
[1741749869811,0.05680807,123.71,123.68,0.06069972]
[1741749870315,6.29603684,123.7,123.68,0.06069972]
[1741749870516,8.0861,123.69,123.68,0.06069972]
[1741749870716,14.38213684,123.69,123.68,0.06069972]
[1741749871519,6.29603684,123.69,123.68,0.06069972]
[1741749872120,8.0878,123.67,123.63,242.66]
[1741749872420,31.82,123.68,123.62,10.1934]
[1741749873217,8.14749653,123.66,123.64,0.05295643]
[1741749873932,0.05929653,123.66,123.64,0.05295643]
[1741749875421,0.05929653,123.66,123.6,145.81590516]
[1741749875924,8.0895,123.64,123.6,153.90750516]
[1741749876318,14.37706887,123.65,123.6,153.90750516]
[1741749876518,31.82,123.65,123.6,153.90750516]
[1741749876723,0.05649931,123.64,123.61,0.05612597]
[1741749877125,6.28679438,123.63,123.61,0.05612597]
[1741749877521,0.05649931,123.64,123.61,0.05612597]
[1741749877722,0.05649931,123.64,123.61,8.14712597]
[1741749879226,0.05649931,123.64,123.62,8.0906]
[1741749880229,0.05649931,123.64,123.63,8.0901]
[1741749880526,0.05649931,123.64,123.61,0.05612597]
[1741749880820,6.34927624,123.64,123.62,8.0904]
[1741749881326,0.05649931,123.64,123.62,8.0904]
[1741749881827,6.29410632,123.63,123.62,8.0904]
[1741749882322,6.29410632,123.63,123.61,0.05612597]
[1741749882927,0.05649931,123.64,123.61,0.05612597]
[1741749883129,8.0901,123.63,123.61,0.05612597]
[1741749883623,0.05649931,123.64,123.61,0.05612597]
[1741749883826,8.14619931,123.64,123.61,0.05612597]
[1741749884125,17.12921429,123.62,123.51,242.66]
[1741749884428,17.12921429,123.58,123.5,19.29471429]
[1741749884629,31.84,123.57,123.5,19.29471429]
[1741749884828,8.0948,123.56,123.51,8.0977]
[1741749885024,14.39959857,123.56,123.51,8.0977]
[1741749885219,0.05259884,123.55,123.52,0.05290634]
[1741749885418,0.05259884,123.55,123.53,8.0961]
[1741749886230,0.05259884,123.55,123.53,8.096]
[1741749887336,0.05259884,123.55,123.52,0.05290634]
[1741749887926,0.05259884,123.55,123.53,8.0962]
[1741749888422,0.05259884,123.55,123.52,0.05290634]
[1741749888623,48.96921429,123.54,123.46,2.28108746]
[1741749888824,17.12921429,123.52,123.46,2.28108746]
[1741749889027,31.84,123.51,123.46,2.28108746]
[1741749889427,6.28326708,123.5,123.46,2.28108746]
[1741749889924,0.05158418,123.49,123.46,2.28108746]
[1741749891132,0.05158418,123.49,123.47,8.0999]
[1741749891538,0.05158418,123.49,123.46,2.28108746]
[1741749891834,0.05158418,123.49,123.47,8.1001]
[1741749892035,0.05158418,123.49,123.46,2.28108746]